bitfinex-derivatives/quotes_SOLF0:USTF0_20250731
["timestamp","ask_amount","ask_price","bid_price","bid_amount"]
[1753920326424,2.99,177.76,177.73,5.6263]
[1753920326728,2.99,177.76,177.73,8.8863]
[1753920327428,191.00320758,177.89,177.67,3.26]
[1753920327729,2.99,177.88,177.77,3.26]
[1753920328133,2.99,177.87,177.86,3.26]
[1753920328737,2.99,177.87,177.86,8.8824]
[1753920328938,2.99,177.87,177.86,3.26]
[1753920331342,2.99,177.87,177.86,8.8824]
[1753920331638,3.18,177.88,177.87,3.28]
[1753920336441,3.18,177.88,177.86,5.6224]
[1753920336640,3.18,177.88,177.86,8.9024]
[1753920337447,3.18,177.88,177.86,3.28]
[1753920338346,3.18,177.9,177.86,3.28]
[1753920338534,3.18,177.9,177.85,5.6226]
[1753920338734,3.18,177.9,177.87,3.28]
[1753920339643,3.18,177.9,177.86,3.28]
[1753920342145,3.18,177.9,177.87,3.28]
[1753920343742,3.18,177.9,177.88,3.28]
[1753920344549,3.18,177.89,177.88,3.28]
[1753920345349,3.18,177.93,177.89,3.28]
[1753920345549,3.18,177.93,177.9,3.28]
[1753920347142,3.18,177.93,177.9,8.901]
[1753920347345,3.18,177.93,177.91,3.28]
[1753920348145,3.18,177.95,177.92,3.28]
[1753920348349,3.18,177.95,177.91,3.28]
[1753920350655,3.18,177.94,177.9,3.28]
[1753920350851,3.18,177.94,177.79,3.28]
[1753920351250,3.18,177.91,177.79,3.28]
[1753920351852,3.18,177.91,177.68,9.36924184]
[1753920352051,3.18,177.91,177.67,11.2568]
[1753920352052,20.06,177.9,177.69,3.28]
[1753920352250,5.6233,177.83,177.77,5.6252]
[1753920352454,3.18,177.82,177.78,3.28]
[1753920353864,3.18,177.82,177.69,11.2555]
[1753920354054,3.18,177.84,177.7,3.28]
[1753920354758,3.18,177.84,177.81,8.904]
[1753920356361,3.18,177.84,177.81,3.28]
[1753920356561,3.18,177.84,177.8,8.9043]
[1753920358158,3.18,177.84,177.81,3.28]
[1753920360563,3.18,177.84,177.81,8.9039]
[1753920360862,3.18,177.84,177.81,3.28]
[1753920362060,3.18,177.84,177.8,5.6241]
[1753920362262,3.18,177.84,177.8,8.6641]
[1753920362463,3.18,177.84,177.81,3.04]
[1753920363865,3.18,177.84,177.8,8.6641]
[1753920364060,3.18,177.84,177.78,3.04]
[1753920364258,3.18,177.84,177.74,3.04]
[1753920364758,5.6239,177.82,177.75,5.6258]
[1753920364960,3.24,177.81,177.75,3.04]
[1753920365162,3.24,177.81,177.76,3.04]
[1753920365666,3.24,177.81,177.72,9.36924184]
[1753920365858,3.24,177.81,177.73,3.04]
[1753920366459,3.24,177.83,177.73,3.04]
[1753920366660,3.24,177.83,177.8,5.6242]
[1753920366860,3.24,177.83,177.82,3.04]
[1753920368559,3.24,177.83,177.8,5.6242]
[1753920368763,3.24,177.82,177.81,3.04]
[1753920369668,3.24,177.82,177.81,8.664]
[1753920378577,3.24,177.84,177.83,8.6632]
[1753920380577,3.24,177.84,177.83,3.04]
[1753920381077,3.24,177.84,177.77,3.04]
[1753920382072,3.24,177.84,177.81,5.6239]
[1753920382377,3.24,177.84,177.81,8.6639]
[1753920382574,3.24,177.84,177.78,5.6249]
[1753920382774,3.24,177.84,177.77,3.04]
[1753920383174,3.24,177.84,177.79,5.6246]
[1753920383583,3.24,177.84,177.79,8.6646]
[1753920384179,3.24,177.83,177.78,8.6648]
[1753920385080,3.24,177.83,177.79,5.6246]
[1753920385580,3.24,177.83,177.79,8.6646]
[1753920385884,3.24,177.83,177.76,3.04]
[1753920386072,5.6235,177.83,177.76,3.04]
[1753920386272,3.24,177.82,177.76,3.04]
[1753920386479,3.24,177.82,177.77,5.6252]
[1753920386679,3.24,177.82,177.77,8.6652]
[1753920387482,3.24,177.81,177.77,5.6252]
[1753920389379,3.24,177.81,177.76,8.6655]
[1753920389690,3.24,177.81,177.76,3.04]
[1753920390776,3.24,177.81,177.75,8.7658]
[1753920390972,3.24,177.81,177.71,9.36924184]
[1753920390973,3.24,177.81,177.73,3.14]
[1753920391379,3.07,177.8,177.74,5.626]
[1753920391579,3.07,177.8,177.74,3.14]
[1753920392278,3.07,177.8,177.75,5.6258]
[1753920392485,3.07,177.8,177.75,3.14]
[1753920392783,3.07,177.8,177.71,3.14]
[1753920392978,3.07,177.79,177.74,8.7662]
[1753920393175,3.07,177.79,177.75,3.14]
[1753920394387,3.07,177.79,177.75,8.7658]
[1753920394684,3.07,177.79,177.75,5.6258]
[1753920394983,3.07,177.79,177.75,8.7658]
[1753920395384,3.07,177.79,177.75,3.14]
[1753920396178,3.07,177.79,177.69,9.36924184]
[1753920396378,3.07,177.79,177.7,3.14]
[1753920396576,3.07,177.77,177.7,3.14]
[1753920397888,3.07,177.77,177.73,3.14]
[1753920398283,3.07,177.76,177.74,3.14]
[1753920398485,3.07,177.76,177.69,3.14]
[1753920400190,3.07,177.76,177.73,5.6264]
[1753920400585,5.6243,177.8,177.73,5.6264]
[1753920400988,5.6248,177.79,177.73,5.6264]
[1753920401288,5.6248,177.79,177.72,5.6268]
[1753920401684,5.6251,177.78,177.72,5.6268]
[1753920401983,5.6251,177.78,177.71,5.6271]
[1753920403086,5.6251,177.78,177.72,5.6268]
[1753920403791,5.6248,177.79,177.73,5.6266]
[1753920404893,5.6243,177.81,177.68,9.36924184]
[1753920405586,5.6243,177.81,177.68,14.99624184]
[1753920405894,5.6243,177.81,177.75,5.6259]
[1753920406591,163.03328309,177.83,177.74,5.6261]
[1753920406592,5.6245,177.8,177.74,5.6261]
[1753920407696,5.6245,177.8,177.75,5.6259]
[1753920408187,5.6241,177.81,177.75,5.6259]
[1753920408388,5.6241,177.81,177.76,5.6255]
[1753920409192,16.88,177.88,177.7,9.36924184]
[1753920409397,4.72019981,177.9,177.7,9.36924184]
[1753920409598,4.72019981,177.96,177.75,9.36924184]
[1753920409798,4.06594632,177.95,177.77,9.36924184]
[1753920410095,4.06594632,177.94,177.77,9.36924184]
[1753920410289,4.06552028,177.93,177.83,5.6231]
[1753920410488,142.45027999,177.95,177.83,5.6231]
[1753920410693,4.06540688,177.94,177.76,9.36924184]
[1753920410893,5.6218,177.89,177.76,9.36924184]
[1753920411287,5.6218,177.89,177.75,9.36924184]
[1753920411488,5.6218,177.89,177.81,5.6237]
[1753920413487,5.6218,177.89,177.82,5.6237]
[1753920414696,5.6218,177.89,177.83,5.6232]
[1753920414905,142.45027999,177.95,177.83,5.6232]
[1753920415193,4.06542105,177.94,177.83,5.6232]
[1753920415399,5.6215,177.89,177.83,5.6232]
[1753920417309,5.6219,177.88,177.83,5.6232]
[1753920420305,5.6219,177.88,177.76,9.36924184]
[1753920420306,144.57230823,177.94,177.76,9.36924184]
[1753920420503,4.06438616,177.93,177.76,9.36924184]
[1753920420704,144.57230823,177.94,177.76,9.36924184]
[1753920420900,4.06435208,177.93,177.76,9.36924184]
[1753920421106,4.72019981,178.0,177.79,9.36924184]
[1753920421304,4.06385066,177.99,177.78,9.36924184]
[1753920421509,21.60019981,178.0,177.84,5.623]
[1753920421510,4.06385066,177.98,177.84,5.623]
[1753920421700,4.06385066,177.97,177.84,5.623]
[1753920421901,4.06385066,177.96,177.84,5.623]
[1753920422208,5.6211,177.91,177.85,5.6227]
[1753920427405,5.6211,177.91,177.86,5.6224]
[1753920428999,143.09809538,177.99,177.78,9.36924184]
[1753920429206,4.03904518,177.98,177.79,9.36924184]
[1753920429408,5.6203,177.93,177.79,9.36924184]
[1753920429607,5.6203,177.93,177.87,5.6219]
[1753920429806,5.6203,177.93,177.79,9.36924184]
[1753920429807,143.09809538,177.99,177.8,9.36924184]
[1753920430105,143.09809538,177.99,177.81,9.36924184]
[1753920430302,143.09809538,177.99,177.8,9.36924184]
[1753920430910,5.6193,177.96,177.8,9.36924184]
[1753920433111,5.6196,177.95,177.89,5.6214]
[1753920433605,5.62,177.94,177.89,5.6214]
[1753920433813,5.62,177.94,177.8,9.36924184]
[1753920434010,143.09809538,177.99,177.79,9.36924184]
[1753920434307,4.03263352,177.98,177.76,9.36924184]
[1753920434508,4.03263352,177.97,177.76,9.36924184]
[1753920434708,143.09809538,177.99,177.76,9.36924184]
[1753920434909,143.09809538,177.99,177.78,9.36924184]
[1753920435106,143.09809538,177.99,177.8,9.36924184]
[1753920435711,5.6191,177.97,177.91,5.6208]
[1753920436206,5.6191,177.97,177.9,5.621]
[1753920436607,5.6191,177.97,177.8,11.2487]
[1753920437118,5.6187,177.98,177.81,11.2481]
[1753920437307,143.09809538,177.99,177.81,11.2481]
[1753920438106,3.25,177.97,177.92,5.6204]
[1753920439112,3.25,177.97,177.92,8.7004]
[1753920439708,143.09809538,177.99,177.9,3.08]
[1753920440113,3.25,177.98,177.9,3.08]
[1753920440515,3.25,177.98,177.93,8.7002]
[1753920440813,3.25,177.98,177.93,3.08]
[1753920441013,3.25,177.98,177.92,5.6203]
[1753920441216,3.25,177.98,177.86,3.08]
[1753920442813,3.25,177.98,177.94,5.6198]
[1753920443020,3.25,177.98,177.94,8.6998]
[1753920443614,3.25,177.98,177.93,5.6202]
[1753920443815,3.25,177.98,177.93,3.08]
[1753920444012,3.25,177.98,177.82,5.627]
[1753920444322,3.25,177.98,177.94,3.08]
[1753920445023,3.25,177.98,177.95,8.6994]
[1753920445224,3.25,177.97,177.96,3.08]
[1753920445722,3.25,177.97,177.96,8.699]
[1753920446725,3.25,177.97,177.93,3.08]
[1753920447426,3.25,177.97,177.93,8.7]
[1753920448425,3.25,177.97,177.84,11.2461]
[1753920448426,3.25,177.97,177.94,5.6199]
[1753920449021,3.25,177.97,177.94,8.6799]
[1753920449227,3.25,177.97,177.94,5.6199]
[1753920449624,3.25,177.97,177.94,8.6799]
[1753920451124,3.25,177.97,177.91,3.06]
[1753920451623,3.25,177.97,177.94,5.6197]
[1753920451828,3.25,177.97,177.94,3.06]
[1753920453428,3.25,177.97,177.95,5.6196]
[1753920455627,3.25,177.97,177.94,5.6199]
[1753920456526,3.25,177.97,177.84,12.42924184]
[1753920456734,3.25,177.97,177.84,3.06]
[1753920457128,3.07,177.92,177.84,3.06]
[1753920458332,3.07,177.92,177.88,5.6216]
[1753920458528,3.07,177.92,177.88,8.6816]
[1753920459031,3.07,177.92,177.88,3.06]
[1753920459523,3.07,177.92,177.88,8.6818]
[1753920459722,3.07,177.92,177.88,3.06]
[1753920460325,3.07,177.92,177.82,3.06]
[1753920460725,3.07,177.92,177.87,3.06]
[1753920461026,3.07,177.92,177.88,3.06]
[1753920462836,3.07,177.92,177.88,8.6818]
[1753920463335,3.07,177.92,177.83,3.06]
[1753920463734,3.07,177.92,177.87,5.6221]
[1753920464033,3.07,177.92,177.87,3.06]
[1753920465228,3.07,177.92,177.88,8.6816]
[1753920465428,3.07,177.92,177.88,3.06]
[1753920465834,3.07,177.92,177.88,8.6816]
[1753920466626,3.07,177.92,177.88,5.6216]
[1753920467633,3.07,177.92,177.88,8.6816]
[1753920469627,3.07,177.92,177.89,5.6215]
[1753920469833,3.07,177.92,177.89,8.6815]
[1753920470030,3.07,177.92,177.9,3.06]
[1753920470440,3.07,177.91,177.9,3.06]
[1753920470838,3.07,177.91,177.9,8.681]
[1753920471036,144.53261553,177.98,177.9,3.06]
[1753920471339,3.07,177.97,177.91,3.06]
[1753920472339,3.07,177.97,177.92,5.6204]
[1753920472534,3.07,177.97,177.93,3.06]
[1753920473238,3.07,177.97,177.91,3.06]
[1753920474234,3.07,177.97,177.91,8.6808]
[1753920474441,3.07,177.97,177.92,3.06]
[1753920474633,3.07,177.97,177.93,3.06]
[1753920475736,3.07,177.96,177.84,9.36924184]
[1753920475930,3.07,177.96,177.85,3.06]
[1753920476133,3.07,177.96,177.86,3.06]
[1753920476331,3.07,177.96,177.89,5.6212]
[1753920476537,3.07,177.96,177.9,3.06]
[1753920478833,3.07,177.96,177.92,5.6203]
[1753920479032,3.12,177.95,177.93,3.1]
[1753920480245,3.12,177.97,177.94,3.1]
[1753920480446,3.12,177.96,177.94,3.1]
[1753920480741,3.12,177.96,177.95,3.1]
[1753920484653,16.88,178.07,177.65,73.1776]
[1753920484654,3.12,177.99,177.91,3.1]
[1753920485056,3.12,177.99,177.98,3.1]
[1753920488056,3.12,178.02,177.98,3.1]
[1753920488954,3.12,178.02,177.99,5.6183]
[1753920489164,3.12,178.02,177.92,9.36924184]
[1753920489361,3.12,178.02,178.01,3.1]
[1753920489661,3.14,178.09,178.01,8.7177]
[1753920490264,5.6354,178.09,178.01,8.7177]
[1753920490458,3.12,178.08,178.02,3.1]
[1753920491052,8.7355,178.08,178.02,3.1]
[1753920491251,3.12,178.07,178.02,3.1]
[1753920491463,3.12,178.07,178.0,5.618]
[1753920491660,5.6158,178.07,178.01,3.1]
[1753920491861,3.12,178.06,178.02,3.1]
[1753920494763,3.12,178.06,178.02,8.7173]
[1753920495063,3.12,178.06,178.03,3.1]
[1753920496359,3.12,178.06,178.01,5.6176]
[1753920496559,3.12,178.06,178.02,3.1]
[1753920496755,3.12,178.06,178.03,3.1]
[1753920503772,3.12,178.06,177.91,9.36924184]
[1753920503971,3.12,178.06,177.92,3.1]
[1753920507772,3.12,178.06,178.02,3.1]
[1753920508474,3.12,178.06,178.01,8.6574]
[1753920510380,3.12,178.06,178.02,5.6174]
[1753920512282,3.12,178.06,178.03,5.6171]
[1753920514480,3.12,178.06,177.92,11.2408]
[1753920514783,3.12,178.06,177.91,3.04]
[1753920515376,3.12,178.06,177.98,5.6186]
[1753920516081,3.12,178.06,177.99,5.6183]
[1753920516271,3.21,178.04,177.95,3.04]
[1753920516470,3.21,178.0,177.95,3.04]
[1753920517283,5.618,178.0,177.95,8.6593]
[1753920517587,3.21,177.99,177.88,3.04]
[1753920517778,3.21,177.99,177.96,5.6193]
[1753920517978,3.21,177.99,177.96,8.6593]
[1753920518173,3.21,177.99,177.96,3.04]
[1753920518383,3.21,177.98,177.87,3.04]
[1753920518682,3.21,177.97,177.87,3.04]
[1753920520283,3.21,177.97,177.92,5.6203]
[1753920520472,11.14,177.98,177.92,5.6203]
[1753920520670,3.21,177.96,177.94,3.04]
[1753920521676,3.21,177.96,177.83,9.36924184]
[1753920521882,3.21,177.96,177.82,9.36924184]
[1753920522074,3.21,177.96,177.86,5.6222]
[1753920522279,5.6208,177.92,177.86,5.6222]
[1753920522479,3.21,177.96,177.83,5.6231]
[1753920522676,3.21,177.96,177.79,9.36924184]
[1753920522876,190.04851108,177.94,177.76,9.36924184]
[1753920523087,4.09788551,177.93,177.8,5.6241]
[1753920523385,4.09788551,177.93,177.75,10.3467562]
[1753920523586,4.09788551,177.93,177.81,5.6238]
[1753920523881,5.622,177.88,177.81,3.04]
[1753920524083,3.21,177.87,177.82,3.04]
[1753920526389,3.21,177.87,177.82,8.6637]
[1753920526577,3.21,177.86,177.83,3.04]
[1753920528487,5.6214,177.9,177.83,3.04]
[1753920528693,3.21,177.89,177.83,3.04]
[1753920529385,3.21,177.89,177.76,3.04]
[1753920530291,3.21,177.89,177.83,3.04]
[1753920530892,3.21,177.89,177.83,8.6634]
[1753920531085,3.21,177.89,177.84,3.04]
[1753920531289,3.21,177.9,177.84,3.04]
[1753920531591,3.21,177.9,177.86,3.04]
[1753920531790,3.21,177.89,177.87,3.04]
[1753920532986,5.6207,177.92,177.87,3.04]
[1753920533189,3.21,177.91,177.88,3.04]
[1753920533383,3.21,177.91,177.87,3.04]
[1753920535289,3.21,177.93,177.85,8.6627]
[1753920535689,3.21,177.93,177.85,5.6227]
[1753920535893,5.6206,177.92,177.85,8.6627]
[1753920536095,3.21,177.91,177.85,8.6627]
[1753920536389,3.21,177.91,177.87,3.04]
[1753920537494,3.21,177.91,177.86,5.6224]
[1753920537690,3.21,177.91,177.86,8.6624]
[1753920538492,5.6209,177.91,177.86,3.04]
[1753920538799,3.3,177.9,177.84,3.19]
[1753920539101,3.3,177.89,177.88,3.19]
[1753920539297,3.3,177.91,177.88,3.19]
[1753920540394,3.3,177.91,177.9,3.19]
[1753920542398,190.04851108,177.94,177.9,3.19]
[1753920542701,3.3,177.93,177.91,3.19]
[1753920543092,3.3,177.93,177.78,11.2499]
[1753920543301,3.3,177.93,177.79,3.19]
[1753920543903,3.3,177.93,177.89,5.6213]
[1753920544101,3.3,177.92,177.9,3.19]
[1753920544600,5.6193,177.96,177.89,5.6213]
[1753920544793,3.3,177.91,177.89,5.6213]
[1753920545306,3.3,177.93,177.9,3.19]
[1753920545506,3.3,177.92,177.91,3.19]
[1753920549007,3.3,177.92,177.84,3.19]
[1753920549606,3.3,177.92,177.86,5.6222]
[1753920549806,3.3,177.92,177.86,3.19]
[1753920550220,3.3,177.92,177.78,11.2499]
[1753920550221,3.3,177.92,177.9,3.19]
[1753920552306,3.3,177.92,177.89,5.6214]
[1753920552808,3.3,177.92,177.89,8.8114]
[1753920553204,3.3,177.92,177.88,5.6218]
[1753920553405,3.3,177.92,177.86,3.19]
[1753920554307,3.3,177.92,177.87,5.6221]
[1753920554618,3.3,177.92,177.87,8.8121]
[1753920555614,3.3,177.92,177.88,3.19]
[1753920557120,3.3,177.92,177.88,8.8117]
[1753920557414,3.3,177.92,177.89,3.19]
[1753920558013,9.31,177.94,177.8,11.2484]
[1753920558318,3.3,177.93,177.87,3.19]
[1753920560118,3.3,177.93,177.89,5.6213]
[1753920560319,3.3,177.93,177.89,8.8113]
[1753920562022,3.3,177.93,177.9,8.8112]
[1753920562421,3.3,177.93,177.9,5.6212]
[1753920564124,3.3,177.93,177.89,8.8114]
[1753920564311,3.3,177.93,177.81,9.36924184]
[1753920564624,5.6212,177.91,177.85,5.6227]
[1753920564821,3.3,177.9,177.85,5.6227]
[1753920565218,8.9212,177.9,177.85,8.8127]
[1753920565419,5.6212,177.9,177.85,8.8127]
[1753920565718,3.3,177.89,177.86,8.8123]
[1753920567024,3.3,177.89,177.86,5.6223]
[1753920568022,3.3,177.89,177.86,8.8123]
[1753920572023,3.3,177.89,177.88,8.8718]
[1753920572223,3.3,177.89,177.88,5.6218]
[1753920572418,3.3,177.89,177.88,8.8718]
[1753920572718,3.03,177.9,177.89,3.25]
[1753920573312,3.03,177.9,177.83,3.25]
[1753920574017,3.03,177.9,177.86,3.25]
[1753920575024,3.03,177.9,177.82,3.25]
[1753920576329,3.03,177.9,177.86,5.6223]
[1753920576524,3.03,177.9,177.87,3.25]
[1753920576725,3.03,177.9,177.81,9.36924184]
[1753920576926,3.03,177.89,177.86,3.25]
[1753920577923,3.03,177.89,177.86,5.6224]
[1753920578124,3.03,177.89,177.87,3.25]
[1753920580529,5.6207,177.92,177.87,3.25]
[1753920580530,3.03,177.88,177.87,3.25]
[1753920581729,3.03,177.88,177.87,8.8721]
[1753920583026,3.03,177.9,177.87,3.25]
[1753920583426,210.45009113,177.97,177.87,3.25]
[1753920583627,3.03,177.91,177.9,8.8712]
[1753920587733,3.03,177.95,177.91,8.8708]
[1753920592234,3.03,177.95,177.91,3.25]
[1753920592430,3.03,177.94,177.87,3.25]
[1753920594035,3.03,177.94,177.91,5.6207]
[1753920594234,3.03,177.94,177.91,8.8707]
[1753920596737,3.03,177.94,177.86,9.36924184]
[1753920596939,3.03,177.94,177.85,3.25]
[1753920597331,5.6208,177.92,177.86,5.6222]
[1753920597532,3.03,177.91,177.86,8.8722]
[1753920597836,3.03,177.91,177.83,9.36924184]
[1753920598033,3.03,177.9,177.85,5.6226]
[1753920598233,3.03,177.9,177.85,8.9126]
[1753920598633,3.03,177.9,177.86,5.6224]
[1753920598836,3.31,177.89,177.86,5.6224]
[1753920599029,3.31,177.89,177.86,8.9124]
[1753920599537,3.31,177.89,177.87,5.622]
[1753920600340,3.31,177.88,177.86,5.6225]
[1753920600540,3.31,177.88,177.82,3.29]
[1753920600729,3.31,177.88,177.84,5.6231]
[1753920601340,3.31,177.88,177.82,3.29]
[1753920602839,5.62,177.94,177.87,3.29]
[1753920603142,3.31,177.92,177.87,3.29]
[1753920604144,3.31,177.92,177.88,3.29]
[1753920604644,3.31,177.92,177.82,3.29]
[1753920604846,4.11422532,177.91,177.82,3.29]
[1753920605041,3.31,177.9,177.82,3.29]
[1753920605241,4.71203939,177.95,177.82,3.29]
[1753920605242,3.31,177.88,177.82,8.9135]
[1753920605440,3.31,177.88,177.82,3.29]
[1753920606948,3.31,177.88,177.84,5.6229]
[1753920607148,3.31,177.88,177.82,3.29]
[1753920607646,3.31,177.88,177.83,5.6232]
[1753920607848,3.31,177.88,177.82,3.29]
[1753920609145,3.31,177.88,177.84,5.6231]
[1753920609550,3.31,177.88,177.82,3.29]
[1753920609755,3.31,177.88,177.84,5.6231]
[1753920609952,3.31,177.87,177.84,5.6231]
[1753920610749,3.31,177.86,177.77,3.29]
[1753920611650,3.31,177.86,177.75,3.29]
[1753920612544,16.87,177.89,177.79,5.6245]
[1753920612545,3.31,177.82,177.79,5.6245]
[1753920613248,3.31,177.82,177.8,5.6241]
[1753920615359,3.31,177.82,177.79,5.6247]
[1753920615854,8.9338,177.82,177.78,8.9149]
[1753920616057,3.31,177.81,177.78,8.9149]
[1753920617361,8.934,177.81,177.78,8.9149]
[1753920617554,3.31,177.8,177.78,8.9149]
[1753920618759,3.31,177.8,177.78,3.29]
[1753920622766,3.31,177.8,177.77,3.29]
[1753920622963,3.31,177.78,177.73,3.29]
[1753920623268,3.31,177.78,177.74,3.29]
[1753920623466,3.31,177.78,177.69,0.97904065]
[1753920623667,3.31,177.78,177.75,3.29]
[1753920624566,3.31,177.78,177.76,3.29]
[1753920625570,3.31,177.78,177.75,3.29]
[1753920627067,3.31,177.77,177.75,3.29]
[1753920627264,3.31,177.75,177.73,5.6264]
[1753920627469,3.31,177.75,177.73,3.29]
[1753920627859,3.31,177.75,177.7,3.29]
[1753920628761,3.31,177.75,177.71,5.627]
[1753920628969,3.31,177.75,177.72,3.15]
[1753920629273,3.24,177.74,177.71,8.777]
[1753920629465,3.24,177.74,177.72,3.15]
[1753920631875,3.24,177.78,177.72,3.15]
[1753920632975,8.8652,177.78,177.73,5.6265]
[1753920633170,3.24,177.77,177.74,3.15]
[1753920634075,3.24,177.77,177.72,8.7768]
[1753920634276,3.24,177.77,177.66,3.15]
[1753920634773,3.24,177.75,177.66,3.15]
[1753920635176,3.24,177.71,177.68,3.15]
[1753920635368,3.24,177.71,177.61,0.97948155]
[1753920635573,3.24,177.71,177.62,3.15]
[1753920635768,3.24,177.71,177.61,4.12948155]
[1753920636075,3.24,177.71,177.62,3.15]
[1753920636277,5.6281,177.69,177.64,5.6294]
[1753920636471,3.24,177.68,177.64,3.15]
[1753920636671,3.24,177.73,177.53,11.2655]
[1753920636866,20.11,177.73,177.54,3.15]
[1753920637074,3.24,177.72,177.58,3.15]
[1753920637572,3.24,177.65,177.61,3.15]
[1753920637771,16.87,177.73,177.61,3.15]
[1753920637973,3.24,177.64,177.63,5.6297]
[1753920638275,3.24,177.64,177.63,3.15]
[1753920638472,5.6281,177.69,177.63,5.6295]
[1753920638676,3.24,177.75,177.58,3.15]
[1753920639076,3.24,177.75,177.66,5.6287]
[1753920639275,3.24,177.75,177.67,3.15]
[1753920640382,3.24,177.71,177.67,3.15]
[1753920640582,3.24,177.7,177.67,3.15]
[1753920640788,3.24,177.7,177.57,0.97971594]
[1753920641084,3.24,177.7,177.69,3.15]
[1753920642275,3.24,177.69,177.68,3.15]
[1753920643486,3.24,177.68,177.67,3.15]
[1753920644884,3.24,177.68,177.64,8.7793]
[1753920645883,3.24,177.68,177.64,3.15]
[1753920646187,3.24,177.68,177.65,3.15]
[1753920646986,16.87,177.76,177.63,5.6294]
[1753920647189,3.24,177.67,177.66,3.15]
[1753920655986,8.49,177.68,177.66,5.6287]
[1753920656186,11.73,177.68,177.67,3.15]
[1753920656892,11.73,177.68,177.65,5.629]
[1753920657093,3.24,177.67,177.57,0.97971594]
[1753920657394,3.24,177.67,177.64,3.15]
[1753920657695,3.24,177.67,177.65,3.15]
[1753920657883,3.24,177.67,177.58,3.15]
[1753920659290,3.24,177.67,177.63,8.7495]
[1753920661696,3.24,177.67,177.64,8.7493]
[1753920662200,3.31,177.66,177.59,3.12]
[1753920662998,3.31,177.66,177.61,5.6303]
[1753920663198,3.31,177.66,177.61,8.7503]
[1753920663397,3.31,177.66,177.61,3.12]
[1753920663596,3.31,177.65,177.61,3.12]
[1753920663898,8.49,177.68,177.61,3.12]
[1753920664701,3.31,177.76,177.67,3.12]
[1753920665201,3.31,177.76,177.71,5.6269]
[1753920665405,3.31,177.76,177.69,3.12]
[1753920665604,3.31,177.76,177.7,5.6272]
[1753920665796,3.31,177.76,177.7,3.12]
[1753920668096,3.31,177.76,177.68,3.12]
[1753920668298,3.31,177.74,177.69,5.6276]
[1753920668502,3.31,177.74,177.69,8.7476]
[1753920669310,3.31,177.74,177.7,3.12]
[1753920669608,3.31,177.74,177.7,8.7474]